bitfinex/quotes_ETHUSD_20220101
["timestamp","ask_amount","ask_price","bid_price","bid_amount"]
[1640995391337,3.703,3695.1,3693.4,0.691]
[1640995391338,0.01307373,3694.4,3693.4,0.691]
[1640995391534,0.01307373,3694.4,3693.8,1.15563512]
[1640995391735,0.01250531,3694.3,3693.9,0.391]
[1640995391934,0.01250531,3694.3,3693.9,0.991]
[1640995392133,0.01193689,3694.2,3693.9,0.991]
[1640995392333,0.01193689,3694.2,3693.9,0.691]
[1640995392538,1.31866294,3695.2,3693.9,0.691]
[1640995392539,0.01136846,3694.1,3693.9,0.691]
[1640995392989,0.01080004,3694.0,3693.9,0.691]
[1640995393393,0.0170527,3694.0,3693.9,0.691]
[1640995395390,0.0170527,3694.0,3693.9,0.391]
[1640995395592,0.0170527,3694.0,3693.9,0.691]
[1640995397543,6.18,3695.4,3693.9,0.691]
[1640995397544,6.1470527,3695.4,3693.9,0.691]
[1640995398044,6.1470527,3695.4,3694.0,0.00625266]
[1640995398045,0.00113685,3695.3,3694.0,0.00625266]
[1640995398644,1.14257165,3695.3,3694.0,0.00625266]
[1640995400478,1.11816174,3694.7,3694.0,0.00625266]
[1640995401885,1.71816174,3694.7,3694.0,5.266e-05]
[1640995402186,1.71816174,3694.7,3692.9,2.49610988]
[1640995402187,0.01297202,3694.2,3692.9,2.49610988]
[1640995402386,0.01297202,3694.2,3692.8,1.35430506]
[1640995402584,0.01297202,3694.2,3693.0,0.00568423]
[1640995403185,1.063599,3693.5,3693.0,0.00568423]
[1640995403383,0.01297202,3694.2,3692.4,0.00909477]
[1640995403585,0.01297202,3694.2,3692.2,2.5063415]
[1640995403782,0.01297202,3694.2,3692.3,0.0096632]
[1640995404034,3.6274,3694.3,3692.3,0.4006632]
[1640995404239,3.6274,3694.3,3692.6,0.5]
[1640995404439,3.6274,3694.3,3692.4,2.49610988]
[1640995404440,0.00113685,3694.2,3692.9,1.27651965]
[1640995404840,0.00113685,3694.2,3692.9,1.57651965]
[1640995405042,0.00113685,3694.2,3692.9,1.87651965]
[1640995406442,0.00113685,3694.2,3692.9,0.6]
[1640995406644,0.00113685,3694.2,3692.8,0.3]
[1640995406846,0.00113685,3694.2,3692.7,0.0073895]
[1640995407045,0.00113685,3694.2,3692.9,0.00625266]
[1640995407246,0.00113685,3694.2,3692.5,0.00852635]
[1640995407445,1.1998591,3693.5,3692.5,0.00852635]
[1640995408273,1.1998591,3693.5,3692.4,0.30909477]
[1640995408474,1.1998591,3693.5,3692.5,0.00852635]
[1640995408677,1.3528006,3692.7,3692.5,0.00852635]
[1640995409072,1.3528006,3692.7,3692.1,0.01080004]
[1640995410275,1.3528006,3692.7,3691.8,0.01250532]
[1640995411628,1.3528006,3692.7,3691.1,1.35430506]
[1640995411629,1.3528006,3692.7,3691.2,0.01591586]
[1640995411830,1.08454995,3691.7,3691.2,0.01591586]
[1640995412030,0.391,3693.2,3691.2,0.01591586]
[1640995412231,0.691,3693.2,3691.2,0.01591586]
[1640995413430,1.03154272,3692.0,3691.2,0.01591586]
[1640995413832,2.48174272,3692.0,3691.0,0.0170527]
[1640995414032,0.01250407,3691.8,3690.7,0.00285797]
[1640995414241,0.391,3691.7,3690.7,0.00285797]
[1640995414436,0.39382626,3691.7,3690.7,0.00285797]
[1640995414732,5.56501819,3690.8,3690.7,0.00285797]
[1640995415172,5.56501819,3690.8,3690.1,0.00626851]
[1640995415374,1.0,3690.7,3690.1,0.00626851]
[1640995416182,2.80718324,3690.6,3690.1,0.00626851]
[1640995416380,1.06501819,3690.8,3690.1,0.00626851]
[1640995416580,1.0,3690.5,3690.1,0.00626851]
[1640995416781,3.37254499,3691.5,3690.1,0.00626851]
[1640995416980,4.60965784,3691.6,3690.1,0.00626851]
[1640995416981,7.3245734,3691.6,3690.1,0.00626851]
[1640995417180,0.00112099,3691.4,3690.1,0.00626851]
[1640995417381,0.00168941,3691.5,3690.1,0.00626851]
[1640995417781,0.00112099,3691.4,3690.1,0.00626851]
[1640995417982,2.77948554,3691.4,3690.1,0.00626851]
[1640995418680,5.9,3691.3,3690.0,0.11026851]
[1640995418923,5.90682108,3691.3,3690.0,0.11026851]
[1640995419124,0.00625265,3691.2,3690.0,0.11026851]
[1640995419328,0.00625265,3691.2,3690.2,1.29519817]
[1640995419528,0.00568423,3691.1,3690.2,1.89519817]
[1640995419927,0.00511581,3691.0,3690.2,1.89519817]
[1640995420330,0.00454738,3690.9,3690.0,0.11026851]
[1640995420731,0.00397896,3690.8,3690.0,0.11026851]
[1640995421135,0.01219577,3691.3,3690.0,0.11026851]
[1640995421136,0.00341054,3690.7,3690.0,0.11026851]
[1640995421330,1.1097248,3690.6,3690.0,0.11026851]
[1640995421534,0.00284211,3690.6,3690.0,0.11026851]
[1640995421735,0.00227369,3690.5,3690.0,0.11026851]
[1640995422134,0.00170527,3690.4,3690.0,0.11026851]
[1640995422534,0.00113684,3690.3,3690.0,0.11026851]
[1640995422982,0.00625265,3691.2,3690.0,0.11026851]
[1640995423384,2.7,3690.4,3690.0,0.11026851]
[1640995423784,0.00113684,3690.3,3690.0,0.11026851]
[1640995423985,0.00113684,3690.3,3690.0,1.46457357]
[1640995424382,0.00113684,3690.3,3690.0,2.06457357]
[1640995424582,0.00113684,3690.3,3690.0,0.71026851]
[1640995424985,0.00113684,3690.3,3690.0,0.41026851]
[1640995425684,0.00113684,3690.3,3690.1,0.391]
[1640995425885,0.00113684,3690.3,3690.1,0.691]
[1640995426287,0.00113684,3690.3,3690.1,2.49396492]
[1640995427330,0.00113684,3690.3,3690.1,1.691]
[1640995427530,0.00113684,3690.3,3690.1,0.691]
[1640995430783,0.00113684,3690.3,3690.1,0.391]
[1640995431184,0.00113684,3690.3,3690.1,0.3]
[1640995431588,0.00113684,3690.3,3690.0,0.41026851]
[1640995431786,0.00113684,3690.3,3690.0,0.11026851]
[1640995431985,0.00113684,3690.3,3690.0,0.41026851]
[1640995432185,0.00113684,3690.3,3690.0,0.11026851]
[1640995448924,2.7,3690.4,3690.0,0.11026851]
[1640995449327,2.7,3690.4,3690.1,0.00113684]
[1640995450131,2.7,3690.4,3690.3,2.77257417]
[1640995450534,2.7,3690.4,3690.3,3.07257417]
[1640995450731,2.7,3690.4,3690.3,0.6]
[1640995451134,2.7,3690.4,3690.1,0.30113684]
[1640995452337,2.7,3690.4,3690.3,2.77264487]
[1640995452533,2.7,3690.4,3690.3,3.07264487]
[1640995453173,2.7,3690.4,3690.3,2.77264487]
[1640995453374,2.7,3690.4,3690.2,2.77264487]
[1640995453975,2.7,3690.4,3690.1,2.77378171]
[1640995456636,2.7,3690.4,3690.3,2.77264487]
[1640995458039,2.7,3690.4,3690.2,2.77264487]
[1640995458838,2.7,3690.4,3690.3,2.77264487]
[1640995459338,2.7,3690.4,3690.2,1.84857399]
[1640995460579,2.7,3690.4,3690.3,1.84857399]
[1640995460881,2.7,3690.4,3690.2,2.77264487]
[1640995461281,2.7,3690.4,3690.2,0.3]
[1640995461483,2.7,3690.4,3690.2,0.6]
[1640995461782,2.7,3690.4,3690.1,1.98740569]
[1640995462082,2.7,3690.4,3690.1,0.60113684]
[1640995462483,2.7,3690.4,3690.1,1.84949531]
[1640995462685,2.7,3690.4,3690.1,2.44949531]
[1640995463085,2.7,3690.4,3690.2,1.38621867]
[1640995463939,2.7,3690.4,3690.3,1.38621867]
[1640995465343,2.7,3690.4,3690.1,0.00113684]
[1640995465543,4.34259098,3690.2,3690.1,0.00113684]
[1640995466142,4.9,3690.1,3690.0,1.04633121]
[1640995466345,6.09645597,3690.0,3689.7,1.84835847]
[1640995466545,3.86321096,3689.9,3689.7,1.84835847]
[1640995466745,2.65597837,3689.8,3689.7,1.19645597]
[1640995467245,1.0,3689.9,3688.6,2.77264487]
[1640995467246,1.02272395,3689.0,3688.6,2.77264487]
[1640995467690,1.02272395,3689.0,3688.8,0.00738951]
[1640995470290,0.06029925,3689.8,3688.8,0.00738951]
[1640995470689,0.06029925,3689.8,3688.2,0.01080005]
[1640995471290,0.06029925,3689.8,3688.1,0.01136847]
[1640995471749,1.08326334,3689.5,3688.1,0.01136847]
[1640995471949,0.06029925,3689.8,3688.2,1.21853974]
[1640995472249,0.06029925,3689.8,3688.3,0.01023163]
[1640995472850,0.06029925,3689.8,3688.3,2.7828765]
[1640995473249,0.06029925,3689.8,3688.4,0.0096632]
[1640995474052,1.23942066,3689.0,3688.4,0.0096632]
[1640995474450,0.06029925,3689.8,3688.4,0.0096632]
[1640995474451,2.76029925,3689.8,3688.4,9.33293347]
[1640995474650,2.76029925,3689.8,3688.5,1.0]
[1640995474851,2.76029925,3689.8,3688.5,10.33236505]
[1640995475052,2.76029925,3689.8,3688.6,0.00852636]
[1640995475292,2.7,3689.8,3688.6,9.33179663]
[1640995475491,2.7,3689.8,3688.6,9.93179663]
[1640995475695,2.7,3689.8,3688.7,0.00795793]
[1640995475891,2.7,3689.8,3688.7,9.3312282]
[1640995476496,2.7,3689.8,3689.2,1.38657034]
[1640995476897,2.7,3689.8,3689.3,0.00454739]
[1640995477098,2.7,3689.8,3689.4,1.38657034]
[1640995477496,2.7,3689.8,3689.5,0.00341054]
[1640995480435,2.7,3689.8,3689.5,9.87814241]
[1640995480636,2.7,3689.8,3689.5,0.30341054]
[1640995480839,2.7,3689.8,3689.6,0.00284212]
[1640995481543,2.7,3689.8,3689.5,0.00341054]
[1640995482442,2.7,3689.8,3689.3,0.00454739]
[1640995482701,2.7,3689.8,3689.3,9.65567891]
[1640995483098,2.7,3689.8,3689.4,0.00397897]
[1640995483304,2.7,3689.8,3689.4,9.61181064]
[1640995483701,2.7,3689.8,3689.5,0.00341054]
[1640995483901,2.7,3689.8,3689.5,9.26124221]
[1640995484101,2.7,3689.8,3689.5,9.56124221]
[1640995484300,2.7,3689.8,3689.5,9.86124221]
[1640995484301,0.00113684,3689.7,3689.5,9.86124221]
[1640995485204,0.00113684,3689.7,3689.6,1.0]
[1640995485402,0.00113684,3689.7,3689.6,12.72238682]
[1640995485604,0.00113684,3689.7,3689.6,9.57113223]
[1640995485809,0.00113684,3689.7,3689.6,10.95770257]
[1640995486208,0.00113684,3689.7,3689.6,9.57113223]
[1640995487242,2.55113684,3689.8,3689.6,9.57113223]
[1640995487443,2.55113684,3689.8,3689.6,11.41989269]
[1640995488546,2.55113684,3689.8,3689.7,1.0]
[1640995488744,2.55113684,3689.8,3689.7,10.88467954]
[1640995489145,2.55113684,3689.8,3689.7,9.03591908]
[1640995489344,2.55113684,3689.8,3689.6,1.38638896]
[1640995489545,2.55113684,3689.8,3689.6,9.03591908]
[1640995490178,2.55113684,3689.8,3689.6,9.33591908]
[1640995490381,2.55113684,3689.8,3689.6,9.63591908]
[1640995491385,2.55113684,3689.8,3689.7,1.38638896]
[1640995491583,2.55113684,3689.8,3689.7,9.84509583]
[1640995492186,2.55113684,3689.8,3689.7,10.84509583]
[1640995492386,2.55113684,3689.8,3689.7,9.84509583]
[1640995493086,2.55113684,3689.8,3689.7,8.45870687]
[1640995493286,2.55113684,3689.8,3689.7,8.55631976]
[1640995494142,2.55113684,3689.8,3689.7,8.85631976]
[1640995502344,2.55113684,3689.8,3689.7,5.95230393]
[1640995508302,2.55113684,3689.8,3689.7,5.65230393]
[1640995508503,5.65230393,3689.7,3688.8,1.37281681]
[1640995508704,5.65230393,3689.7,3688.6,5.35912891]
[1640995508705,5.95230393,3689.7,3688.6,5.35912891]
[1640995508932,1.0,3689.6,3688.9,0.00454739]
[1640995509335,1.76210988,3689.5,3688.9,0.00454739]
[1640995509536,1.76210988,3689.5,3688.9,5.35912891]
[1640995509537,2.06210988,3689.5,3688.9,5.35912891]
[1640995509732,2.06210988,3689.5,3688.9,4.45582891]
[1640995509733,2.56043383,3689.4,3688.9,4.45582891]
[1640995509932,0.391,3689.3,3689.0,0.00397896]
[1640995510137,5.36302891,3689.0,3687.9,1.37281681]
[1640995510344,5.36302891,3689.0,3687.4,1.681e-05]
[1640995510345,3.20883441,3688.9,3687.4,1.681e-05]
[1640995510535,3.20883441,3688.9,3688.0,0.00568424]
[1640995510536,1.35984031,3688.8,3688.0,0.00568424]
[1640995510740,0.391,3688.7,3688.0,0.00568424]
[1640995511137,0.691,3688.7,3688.0,0.00568424]
[1640995511746,0.691,3688.7,3687.9,0.00625266]
[1640995512143,0.391,3688.7,3687.9,0.00625266]
[1640995512344,1.24763325,3688.0,3687.9,0.00625266]
[1640995512787,2.60653157,3688.0,3687.9,0.00625266]
[1640995513591,1.35889832,3688.0,3687.9,0.00625266]
[1640995514395,1.31912049,3688.0,3687.9,0.00625266]
[1640995514591,1.31912049,3688.0,3687.9,1.39725266]
[1640995514794,1.31912049,3688.0,3687.9,0.39725266]
[1640995515198,1.31912049,3688.0,3687.9,1.39725266]
[1640995516094,1.31912049,3688.0,3687.9,8.75071266]
[1640995516295,3.14228331,3688.0,3687.9,8.75071266]
[1640995516544,3.14228331,3688.0,3687.9,6.28725266]
[1640995516742,2.31548229,3688.0,3687.9,8.77781693]
[1640995516945,1.65360204,3688.0,3687.9,6.28725266]
[1640995517242,0.06077847,3688.6,3688.0,4.63298722]
[1640995517448,0.06077847,3688.6,3688.1,3.22250958]
[1640995517644,0.06077847,3688.6,3688.1,0.69611581]
[1640995517846,0.06077847,3688.6,3688.2,1.00454739]
[1640995518043,0.06077847,3688.6,3688.3,0.391]
[1640995518044,0.50306178,3688.6,3688.3,0.391]
[1640995518245,0.50306178,3688.6,3688.3,0.39497897]
[1640995518246,1.83560196,3688.5,3688.3,0.39497897]
[1640995518543,1.83560196,3688.5,3688.4,0.00341054]
[1640995518743,1.83560196,3688.5,3688.4,0.39441054]
[1640995518944,1.83560196,3688.5,3688.4,0.69441054]
[1640995519647,1.83560196,3688.9,3688.4,0.69441054]
[1640995520193,1.83560196,3688.9,3688.5,0.00284212]
[1640995520398,1.83560196,3688.9,3688.6,0.391]
[1640995520595,1.83560196,3688.9,3688.6,0.691]
[1640995520798,1.83560196,3688.9,3688.7,0.00170527]
[1640995520995,1.83560196,3688.9,3688.8,0.691]
[1640995521395,1.83560196,3688.9,3688.8,0.69213685]
[1640995522000,1.83560196,3688.9,3688.8,5.58213685]
[1640995522398,1.83560196,3688.9,3688.8,8.44981946]
[1640995522599,1.83560196,3688.9,3688.8,6.88213685]
[1640995523001,2.49941604,3688.9,3688.8,10.31009218]
[1640995523201,2.49941604,3688.9,3688.8,26.49899218]
[1640995524232,2.49941604,3688.9,3688.8,31.12018857]
[1640995524633,5.65230393,3689.7,3689.0,4.22411746]
[1640995524839,5.788e-05,3689.2,3689.1,23.97926386]
[1640995525040,2.59380373,3689.2,3689.1,25.57926386]
[1640995525738,5.65230393,3689.7,3689.1,25.57926386]
[1640995525739,5.65230393,3689.7,3689.6,15.87]
[1640995525941,5.65230393,3689.7,3689.6,21.89093338]
[1640995525942,8.24610766,3689.7,3689.6,21.89093338]
[1640995526138,8.24610766,3689.7,3689.6,54.69093338]
[1640995526337,7.26797323,3689.7,3689.6,54.69093338]
[1640995526740,7.26797323,3689.7,3689.6,59.31212977]
[1640995527238,7.26797323,3689.7,3689.6,62.29593135]
[1640995527441,7.26797323,3689.7,3689.6,62.32748855]
[1640995528291,7.26797323,3689.7,3689.6,62.62748855]
[1640995528493,0.06077552,3690.3,3689.7,4.25395317]
[1640995528695,3.6308,3693.2,3690.4,15.87]
[1640995528894,6.18,3693.3,3690.4,15.87]
[1640995528895,1.4946848,3693.1,3691.6,4.89]
[1640995529093,6.18,3693.3,3691.6,4.89]
[1640995529094,1.4946848,3693.0,3691.7,16.261]
[1640995529294,1.4946848,3692.9,3692.1,4.89]
[1640995529493,0.0228159,3693.2,3692.1,4.89]
[1640995529494,1.4946848,3692.8,3692.4,1.09883367]
[1640995529695,1.4946848,3692.8,3692.4,1.00592293]
[1640995529696,1.4946848,3692.7,3692.4,1.00592293]
[1640995529897,1.51465859,3692.7,3692.6,4.89]
[1640995530099,1.4946848,3692.7,3692.6,5.62773064]
[1640995530312,4.48464654,3694.8,3692.7,5.2]
[1640995530499,4.43813023,3694.8,3694.1,5.19]
[1640995530710,4.43813023,3694.8,3694.1,1.35748917]
[1640995530904,0.40808509,3696.1,3694.6,1.25817777]
[1640995530905,4.43813023,3695.5,3694.6,1.25817777]
[1640995531107,4.43813023,3695.5,3695.0,4.89]
[1640995531297,0.0347528,3695.3,3695.1,0.391]
[1640995531547,0.0347528,3695.3,3695.1,1.75585458]
[1640995531745,4.43813023,3695.5,3695.2,4.92027799]
[1640995531946,6.05598273,3696.1,3695.4,4.89]
[1640995532145,6.05598273,3696.1,3695.5,0.391]
[1640995532357,6.05598273,3696.1,3695.5,2.74092934]
[1640995532548,6.93,3696.3,3695.9,5.22763631]
[1640995532749,6.93,3696.3,3696.0,0.691]
[1640995532943,6.93,3696.3,3696.0,3.07719295]
[1640995532944,0.03986861,3696.2,3696.0,3.07719295]
[1640995533145,0.03986861,3696.2,3696.0,34.57719295]
[1640995533345,0.03930018,3696.1,3696.0,34.57719295]
[1640995533544,0.03930018,3696.1,3696.0,39.43092934]
[1640995533745,1.21933348,3697.3,3696.0,38.43092934]
[1640995533946,1.21933348,3697.3,3696.0,33.54831885]
[1640995533947,6.93,3696.8,3696.0,33.54831885]
[1640995534244,6.93,3696.8,3696.1,0.00682109]
[1640995534245,13.11,3696.8,3696.1,0.00682109]
[1640995534445,13.11,3696.8,3696.2,0.391]
[1640995534646,13.11,3696.8,3696.2,1.72889375]
[1640995534847,13.11,3696.8,3696.3,0.00568424]
[1640995535047,13.11,3696.8,3696.4,0.391]
[1640995535286,13.11,3696.8,3696.4,2.02889375]
[1640995535484,13.11,3696.8,3696.5,0.00454739]
[1640995535686,13.11,3696.8,3696.6,0.391]
[1640995535884,13.11,3696.8,3696.6,1.72889375]
[1640995536085,6.93,3696.8,3696.7,0.00341055]
[1640995536285,9.63,3696.8,3696.7,1.7323043]
[1640995537389,9.63,3696.8,3696.7,2.6985043]
[1640995537589,6.93,3696.8,3696.7,2.6985043]
[1640995537793,6.93,3696.8,3696.7,3.6985043]
[1640995538589,6.93,3696.8,3696.7,8.5885043]
[1640995539043,3.23950317,3696.8,3696.7,8.5885043]
[1640995539446,0.7620237,3696.8,3696.7,8.5885043]
[1640995539643,0.00212358,3696.8,3696.7,8.62671142]
[1640995540843,0.0588,3699.0,3696.7,8.62671142]
[1640995540844,0.0588,3699.0,3696.8,2.4]
[1640995541044,0.0588,3699.0,3697.0,4.89]
[1640995541243,0.00909477,3698.9,3697.2,0.3]
[1640995541551,0.00909477,3698.9,3697.3,0.691]
[1640995541847,0.00852635,3698.8,3697.4,2.40083162]
[1640995542049,0.00852635,3698.8,3697.5,0.391]
[1640995542247,0.13819997,3699.2,3697.5,0.391]
[1640995542248,0.00795792,3698.7,3697.5,2.00791503]
[1640995542449,0.00795792,3698.7,3697.5,3.00791503]
[1640995542694,0.13819997,3699.2,3697.5,3.00791503]
[1640995542695,0.0073895,3698.6,3697.5,2.00791503]
[1640995543096,0.01286617,3698.8,3697.5,2.00791503]
[1640995543097,0.00682108,3698.5,3697.5,2.00791503]
[1640995543496,0.00625265,3698.4,3697.5,2.00791503]
[1640995543695,1.11020907,3698.4,3697.5,2.00791503]
[1640995543900,0.00568423,3698.3,3697.5,2.00791503]
[1640995544295,0.00511581,3698.2,3697.5,1.55228655]
[1640995544596,0.00454738,3698.1,3697.5,1.55228655]
[1640995544997,0.00397896,3698.0,3697.5,1.55228655]
[1640995545397,0.00341054,3697.9,3697.5,1.55228655]
[1640995545796,1.07422368,3698.8,3697.5,1.55228655]
[1640995545797,0.00284211,3697.8,3697.5,1.55228655]
[1640995546198,0.00227369,3697.7,3697.5,1.55228655]
[1640995546440,0.00227369,3697.7,3697.5,1.15423779]
[1640995546646,0.00170527,3697.6,3697.5,1.19320302]
[1640995546849,0.00170527,3697.6,3697.5,1.49320302]
[1640995548251,0.00170527,3697.6,3697.5,1.45423779]
[1640995548646,0.00170527,3697.6,3697.5,4.95423779]
[1640995549047,0.00170527,3697.6,3697.5,5.95423779]
[1640995549448,0.00170527,3697.6,3697.5,5.98691433]
[1640995550303,0.05836876,3698.4,3697.5,5.491]
[1640995550491,0.00092947,3697.6,3697.5,5.491]
[1640995550691,0.00092947,3697.6,3697.5,21.361]
[1640995550894,13.9345,3700.4,3698.8,0.13219334]
[1640995551095,0.19539997,3700.0,3698.8,0.13219334]
[1640995551294,1.26871553,3699.2,3698.4,0.691]
[1640995551798,0.00454739,3699.1,3698.4,0.691]
[1640995552196,0.00397896,3699.0,3698.4,0.691]
[1640995552499,0.00341054,3698.9,3698.4,0.691]
[1640995552897,0.00284212,3698.8,3698.4,0.691]
[1640995553297,1.26871553,3699.2,3698.4,0.691]
[1640995553298,0.00227369,3698.7,3698.4,0.691]
[1640995553796,0.00170527,3698.6,3698.4,0.691]
[1640995554040,0.00170527,3698.6,3697.5,0.39554739]
[1640995554242,0.00113685,3698.5,3697.5,0.00454739]
[1640995554441,0.00113685,3698.5,3697.6,0.00397896]
[1640995554641,0.00227369,3698.7,3697.6,0.06109881]
[1640995555041,0.00170527,3698.6,3697.7,0.00341054]
[1640995555443,0.00113685,3698.5,3697.7,0.00341054]
[1640995555643,0.00113685,3698.5,3697.1,2.3755903]
[1640995555644,0.00113685,3698.5,3697.2,0.00625266]
[1640995555843,1.39136375,3698.8,3697.2,0.00625266]
[1640995556047,0.00511581,3699.2,3697.6,1.03344885]
[1640995556246,1.0,3699.7,3697.6,1.03344885]
[1640995556247,1.0,3699.7,3697.7,0.391]
[1640995556443,0.13819997,3700.1,3697.8,3.9120569]
[1640995556647,0.0022737,3699.1,3697.8,0.70817271]
[1640995556847,0.0022737,3699.1,3697.9,0.00454738]
[1640995557047,0.00170527,3699.0,3697.9,0.00454738]
[1640995557449,0.00113685,3698.9,3697.9,0.00454738]
[1640995557889,1.24247414,3699.1,3697.9,0.00454738]
[1640995557890,0.00170527,3699.0,3697.9,0.00454738]
[1640995558290,0.00113685,3698.9,3697.9,0.00454738]
[1640995558693,0.00568424,3699.7,3697.9,0.00454738]
[1640995559093,0.00511581,3699.6,3697.9,0.00454738]
[1640995559292,1.00665182,3699.3,3697.9,0.00454738]
[1640995559492,0.00454739,3699.5,3697.9,0.00454738]
[1640995559802,0.00397897,3699.4,3697.9,0.00454738]
[1640995560194,0.01288491,3699.8,3697.9,0.00454738]
[1640995560195,0.00341054,3699.3,3697.9,0.00454738]
[1640995560395,1.06281579,3698.8,3697.9,0.00454738]
[1640995560597,0.31381041,3698.8,3697.9,0.00454738]
[1640995561442,0.31381041,3698.7,3697.9,0.00454738]
[1640995561641,0.31381041,3698.6,3697.9,0.00454738]
[1640995561843,0.31381041,3698.5,3697.9,0.00454738]
[1640995562041,0.00170527,3699.0,3697.9,0.00454738]
[1640995562042,0.00170527,3699.0,3698.6,1.37403444]
[1640995562244,0.31551568,3699.0,3698.6,1.37403444]
[1640995562545,0.00113685,3698.9,3698.6,1.67403444]
[1640995562842,0.30517458,3698.9,3698.6,1.67403444]
[1640995563042,0.30517458,3698.9,3698.6,1.97403444]
[1640995563441,0.30517458,3698.9,3698.6,1.67403444]
[1640995564243,0.00113685,3698.9,3698.6,1.67403444]
[1640995564447,0.00113685,3698.9,3698.6,1.97403444]
[1640995565291,0.00113685,3698.9,3698.7,1.37403444]
[1640995565691,0.00113685,3698.9,3698.7,1.67403444]
[1640995565891,0.00113685,3698.9,3698.8,1.37403444]
[1640995566506,0.00113685,3698.9,3698.8,2.45833444]
[1640995567099,0.00113685,3698.9,3698.8,1.0843]
[1640995567304,0.00113685,3698.9,3698.8,2.33409536]
[1640995567601,0.99759631,3700.2,3698.8,1.0843]
[1640995567802,0.01234774,3700.5,3698.9,0.3]
[1640995568000,0.00170527,3699.2,3699.0,0.691]
[1640995568400,0.01234774,3700.5,3699.0,0.691]
[1640995568401,0.00113685,3699.1,3699.0,0.691]
[1640995568599,0.00113685,3699.1,3699.0,2.49381381]
[1640995568799,0.00113685,3699.1,3699.0,32.49381381]
[1640995569434,0.00113685,3699.1,3699.0,31.023645]
[1640995569636,0.00113685,3699.1,3699.0,30.991]
[1640995569835,0.00113685,3699.1,3699.0,31.02913384]
[1640995570035,0.00113685,3699.1,3699.0,30.991]
[1640995570236,0.00113685,3699.1,3699.0,31.0287484]
[1640995570434,0.00113685,3699.1,3699.0,46.861]
[1640995570634,0.00113685,3699.1,3699.0,46.89203248]
[1640995570841,3.685e-05,3699.1,3699.0,56.36242281]
[1640995571039,0.0610976,3700.1,3699.2,16.17]
[1640995571240,0.0610976,3700.1,3699.3,0.391]
[1640995571445,0.00511581,3700.0,3699.3,16.261]
[1640995571644,0.00511581,3700.0,3699.4,15.87]
[1640995571840,0.0610976,3700.1,3699.4,15.87]
[1640995571841,0.00454739,3699.9,3699.5,0.391]
[1640995572041,0.00454739,3699.9,3699.5,17.27109537]
[1640995572242,0.0610976,3700.1,3699.8,29.99602104]
[1640995572442,0.0610976,3700.1,3699.9,0.391]
[1640995572740,0.00113685,3700.0,3699.9,0.391]
[1640995573536,0.00113685,3700.0,3699.9,6.80179218]
[1640995573834,0.00113685,3700.0,3699.9,7.10179218]
[1640995574034,0.00113685,3700.0,3699.9,22.97179218]
[1640995574837,0.00113685,3700.0,3699.9,28.71406089]
[1640995575237,0.00113685,3700.0,3699.9,26.91469152]
[1640995575438,0.00113685,3700.0,3699.9,23.87147686]
[1640995576547,0.00113685,3700.0,3699.9,26.91469152]
[1640995577547,0.00113685,3700.0,3699.9,16.561]
[1640995579950,3.685e-05,3700.0,3699.9,16.561]
[1640995580185,3.685e-05,3700.0,3699.9,23.3351693]
[1640995580386,3.685e-05,3700.0,3699.9,22.05881634]
[1640995580588,3.685e-05,3700.0,3699.9,23.72441634]
[1640995580791,3.685e-05,3700.0,3699.9,23.72361634]
[1640995580988,3.685e-05,3700.0,3699.9,23.72441634]
[1640995581190,3.685e-05,3700.0,3699.9,23.72201634]
[1640995581391,3.685e-05,3700.0,3699.9,23.71881634]
[1640995581593,3.685e-05,3700.0,3699.9,23.72201634]
[1640995581795,3.685e-05,3700.0,3699.9,27.22201634]
[1640995581995,3.685e-05,3700.0,3699.9,27.22281634]
[1640995582293,3.685e-05,3700.0,3699.9,27.22361634]
[1640995582494,3.685e-05,3700.0,3699.9,40.41787893]
[1640995582694,3.685e-05,3700.0,3699.9,94.79348844]
[1640995582893,3.685e-05,3700.0,3699.9,94.79428844]
[1640995583093,3.685e-05,3700.0,3699.9,95.79268844]
[1640995583291,3.685e-05,3700.0,3699.9,95.78708844]
[1640995583492,3.685e-05,3700.0,3699.9,95.78548844]
[1640995583693,3.685e-05,3700.0,3699.9,101.54555093]
[1640995583949,3.685e-05,3700.0,3699.9,101.54475093]
[1640995584248,3.685e-05,3700.0,3699.9,101.54555093]
[1640995584449,0.06109564,3701.0,3700.2,3.5]
[1640995584652,0.06109564,3701.0,3700.8,0.01235247]
[1640995584850,0.06109564,3701.0,3700.9,0.391]
[1640995585252,0.00568423,3701.0,3700.9,34.561]
[1640995585451,0.00568423,3701.0,3700.9,34.861]
[1640995586955,0.00568423,3701.0,3700.9,39.46921878]
[1640995587158,0.00568423,3701.0,3700.9,34.861]
[1640995588382,0.00568423,3701.0,3700.9,39.46907397]
[1640995589184,0.00568423,3701.0,3700.9,46.46907397]
[1640995589385,0.00568423,3701.0,3700.9,42.96907397]
[1640995589585,0.00568423,3701.0,3700.9,40.89311498]
[1640995589986,0.00568423,3701.0,3700.9,39.46907397]
[1640995590188,0.00568423,3701.0,3700.9,40.82520048]
[1640995590587,0.00568423,3701.0,3700.9,39.46907397]
[1640995590984,0.00568423,3701.0,3700.9,42.96907397]
[1640995592453,0.00568423,3701.0,3700.9,39.46907397]
[1640995592851,0.00568423,3701.0,3700.9,34.861]
[1640995593654,0.00653161,3701.0,3700.9,34.861]
[1640995593855,0.00653161,3701.0,3700.9,39.46895526]
[1640995594655,0.00653161,3701.0,3700.9,40.82599433]
[1640995596087,0.00653161,3701.0,3700.9,40.92337187]
[1640995596286,7.11677597,3703.4,3701.1,15.87]
[1640995596495,7.11677597,3703.4,3701.4,0.3]
[1640995596694,7.11677597,3703.4,3701.6,1.35039]
[1640995596695,0.00397897,3701.7,3701.6,1.35039]
[1640995596894,7.11677597,3703.4,3701.6,2.04139]
[1640995597093,7.11677597,3703.4,3701.7,15.87]
[1640995597297,7.11677597,3703.4,3702.2,1.2914361]
[1640995597497,0.00852635,3703.2,3702.2,1.9824361]
[1640995597696,0.00852635,3703.2,3702.2,2.2824361]
[1640995597896,0.00795793,3703.1,3702.2,0.991]
[1640995598193,0.0073895,3703.0,3702.2,0.991]
[1640995598395,0.0073895,3703.0,3702.7,1.35021]
[1640995598596,6.022676,3703.7,3702.7,2.49114]
[1640995598797,0.108076,3703.7,3702.8,0.00113685]
[1640995599035,7.6877,3704.3,3702.8,0.00113685]
[1640995599241,0.00170527,3703.6,3702.8,0.00284211]
[1640995599435,3.8044,3704.3,3703.3,1.35]
[1640995599436,0.0574,3704.3,3703.3,1.35]
[1640995599635,6.18,3704.4,3703.3,1.68761016]